bitfinex/quotes_ETHUSD_20241116
["timestamp","ask_amount","ask_price","bid_price","bid_amount"]
[1731718248261,3.2416,3084.9,3084.7,0.7749]
[1731718248477,3.2416,3084.9,3084.6,0.63309426]
[1731718248478,0.298,3085.3,3084.6,0.63309426]
[1731718248769,6.48335,3084.9,3084.4,0.7749]
[1731718248932,6.48335,3084.9,3084.4,1.33999606]
[1731718249266,3.24167,3084.9,3084.4,1.33999606]
[1731718250042,3.24172,3084.8,3084.4,1.33999606]
[1731718250241,3.24167,3084.9,3084.4,1.33999606]
[1731718250449,3.24167,3084.9,3084.5,0.45821961]
[1731718251458,3.24173,3084.8,3084.5,0.45821961]
[1731718251828,3.24173,3084.8,3084.4,1.33999606]
[1731718252131,3.24173,3084.8,3084.4,0.7749]
[1731718253544,3.2417,3084.8,3083.9,0.55]
[1731718253740,3.2422,3084.4,3083.8,5.65149055]
[1731718254079,3.2422,3084.4,3083.9,0.27333605]
[1731718254438,3.24254,3084.0,3083.8,0.7749]
[1731718254645,3.24297,3083.6,3083.4,0.7749]
[1731718254999,3.24297,3083.6,3083.5,0.14]
[1731718255439,3.24297,3083.6,3082.9,0.7749]
[1731718255440,3.24337,3083.3,3082.9,0.7749]
[1731718255640,3.24339,3083.2,3082.9,0.7749]
[1731718255899,3.24348,3083.1,3083.0,0.14]
[1731718256083,3.24348,3083.1,3082.9,0.7749]
[1731718256288,3.24348,3083.1,3082.7,0.7749]
[1731718256453,3.24377,3082.9,3082.3,0.7749]
[1731718256781,3.24377,3082.9,3082.4,0.65656843]
[1731718256987,3.24372,3082.9,3082.4,0.65656843]
[1731718258148,3.24381,3082.8,3082.4,0.65656843]
[1731718258343,3.24361,3083.0,3082.4,4.41023407]
[1731718258887,3.24338,3083.2,3082.4,4.47511049]
[1731718259085,0.298,3083.5,3082.7,3.2439]
[1731718259086,3.2432,3083.4,3082.7,3.2439]
[1731718259247,3.2432,3083.4,3082.6,0.7749]
[1731718259248,3.2432,3083.4,3082.6,0.83977171]
[1731718259447,3.24346,3083.2,3082.6,0.83977171]
[1731718259678,3.24292,3083.7,3082.6,0.7749]
[1731718260003,3.24381,3082.8,3082.6,0.7749]
[1731718260363,3.24381,3082.8,3082.4,0.65656843]
[1731718260599,3.24404,3082.6,3082.4,0.65656843]
[1731718260804,3.24381,3082.8,3082.4,0.65656843]
[1731718261368,3.24391,3082.7,3082.4,0.65656843]
[1731718262309,3.24348,3083.1,3082.3,1.43213863]
[1731718262471,3.24401,3082.6,3082.3,0.7749]
[1731718262812,3.24412,3082.5,3082.3,0.7749]
[1731718263109,3.24401,3082.6,3082.3,0.7749]
[1731718263270,3.24412,3082.5,3082.3,0.7749]
[1731718263611,3.24404,3082.6,3082.3,0.7749]
[1731718263903,3.24412,3082.5,3082.3,0.7749]
[1731718264109,3.24404,3082.6,3082.3,0.7749]
[1731718265022,6.48815,3082.6,3082.3,0.7749]
[1731718265216,3.597628,3083.1,3082.3,0.7749]
[1731718265217,3.24392,3082.7,3082.3,0.7749]
[1731718265585,3.24382,3082.8,3082.3,0.7749]
[1731718266216,3.24392,3082.7,3082.3,0.7749]
[1731718266524,3.24401,3082.6,3082.3,0.7749]
[1731718266741,3.24452,3082.2,3081.9,0.8171]
[1731718266934,3.24452,3082.2,3081.9,1.47361602]
[1731718267330,3.24433,3082.3,3081.9,1.47361602]
[1731718268626,3.24464,3082.0,3081.9,0.8171]
[1731718269344,3.24464,3082.0,3081.7,0.65412924]
[1731718269529,0.298,3082.7,3081.7,0.65412924]
[1731718269875,3.24423,3082.4,3081.8,3.24479]
[1731718270028,3.24437,3082.3,3081.7,0.65412924]
[1731718270230,3.24452,3082.2,3081.8,0.47162592]
[1731718270537,6.48905,3082.2,3081.8,0.47162592]
[1731718270744,3.24452,3082.2,3081.8,0.47162592]
[1731718271015,3.24452,3082.2,3081.7,0.65412924]
[1731718271161,3.24456,3082.1,3081.7,0.65412924]
[1731718271357,3.24465,3082.0,3081.7,0.65412924]
[1731718272568,6.489,3082.2,3081.7,0.65412924]
[1731718272898,3.24447,3082.2,3081.7,0.65412924]
[1731718273101,3.24447,3082.2,3081.7,1.12575716]
[1731718273898,3.24426,3082.4,3081.7,1.12575716]
[1731718274099,3.24426,3082.4,3081.7,4.37063716]
[1731718274272,3.24444,3082.2,3081.7,1.12575716]
[1731718274469,3.24426,3082.4,3081.7,1.12575716]
[1731718274726,3.24444,3082.2,3081.7,0.65412924]
[1731718275021,3.2447,3082.0,3081.7,0.65412924]
[1731718275316,3.24479,3081.9,3081.6,0.8171]
[1731718275904,3.2447,3082.0,3081.6,0.8171]
[1731718275905,3.24492,3081.8,3081.6,0.8171]
[1731718276121,0.648962,3081.8,3081.0,0.8047]
[1731718276297,3.24533,3081.4,3081.2,0.64387453]
[1731718276602,3.54259,3082.1,3081.2,0.64387453]
[1731718276814,3.24517,3081.6,3081.2,0.64387453]
[1731718277107,3.24525,3081.5,3081.2,0.64387453]
[1731718277263,3.24525,3081.5,3080.6,0.8047]
[1731718277264,3.24577,3081.0,3080.6,0.8047]
[1731718278005,3.24551,3081.2,3080.6,1.46031436]
[1731718278302,3.24551,3081.2,3080.6,4.70636436]
[1731718278535,3.24559,3081.1,3080.6,5.5016298]
[1731718278671,3.24559,3081.1,3080.6,2.2555798]
[1731718279615,3.24551,3081.2,3080.6,5.5016898]
[1731718280672,3.24489,3081.8,3081.2,3.24541]
[1731718280874,3.54268,3082.0,3081.3,0.8047]
[1731718281285,3.24487,3081.8,3081.3,0.8047]
[1731718281886,3.54268,3082.0,3081.3,0.8047]
[1731718282122,3.24477,3081.9,3081.4,3.24525]
[1731718282335,3.24487,3081.8,3081.3,0.8047]
[1731718283671,3.24497,3081.7,3081.3,0.8047]
[1731718285079,3.24487,3081.8,3081.3,0.8047]
[1731718285277,3.24476,3081.9,3081.4,3.24526]
[1731718285477,3.24476,3081.9,3081.3,4.05001]
[1731718286132,3.24488,3081.8,3081.3,4.05001]
[1731718286508,3.24476,3081.9,3081.3,4.05001]
[1731718286707,3.09086,3081.9,3081.3,4.05001]
[1731718286909,3.24456,3082.1,3081.3,4.05001]
[1731718286910,3.24467,3082.0,3081.4,3.24521]
[1731718287328,3.18107,3082.0,3081.4,3.24521]
[1731718287813,3.24478,3081.9,3081.4,3.24521]
[1731718288099,3.24447,3082.2,3081.6,0.7627]
[1731718288295,3.24447,3082.2,3081.6,4.00767]
[1731718288747,3.24447,3082.2,3081.6,0.7627]
[1731718288938,3.24464,3082.1,3081.6,0.7627]
[1731718290204,0.298,3082.5,3081.6,0.7627]
[1731718290511,3.24528,3081.4,3081.1,0.65222818]
[1731718291026,3.24511,3081.6,3081.2,0.7627]
[1731718291211,3.2449,3081.8,3081.3,3.24536]
[1731718291416,3.24477,3081.9,3081.4,0.400806]
[1731718292450,3.2446,3082.1,3081.5,0.7627]
[1731718292744,3.24466,3082.0,3081.5,4.00784]
[1731718292943,3.24466,3082.0,3081.5,0.7627]
[1731718293114,3.2446,3082.1,3081.5,1.5281136]
[1731718293312,0.298,3082.3,3081.5,1.5281136]
[1731718293313,3.24436,3082.3,3081.5,1.5281136]
[1731718293643,3.24436,3082.3,3081.8,0.7627]
[1731718293863,3.24394,3082.7,3082.2,0.7627]
[1731718294143,3.24402,3082.6,3082.2,0.7627]
[1731718295245,3.24433,3082.3,3082.2,0.7627]
[1731718295445,3.24463,3082.1,3081.5,0.7627]
[1731718295603,3.24418,3082.5,3081.5,0.7627]
[1731718295604,3.24439,3082.3,3081.7,3.24495]
[1731718295948,3.24471,3082.0,3081.5,1.463495]
[1731718296104,3.24471,3082.0,3081.5,0.7627]
[1731718296947,3.24451,3082.2,3081.7,0.64853644]
[1731718297105,6.48903,3082.2,3081.7,0.64853644]
[1731718297305,3.24461,3082.1,3081.7,0.64853644]
[1731718298014,3.24451,3082.2,3081.7,0.64853644]
[1731718298243,3.24396,3082.7,3081.7,0.64853644]
[1731718298244,3.24401,3082.7,3082.0,3.24458]
[1731718298434,3.24403,3082.6,3082.0,3.24458]
[1731718298633,3.24403,3082.6,3082.1,0.7627]
[1731718300523,3.2443,3082.4,3082.1,0.7627]
[1731718301347,3.24403,3082.6,3082.1,0.7627]
[1731718301547,3.24437,3082.3,3082.1,0.7627]
[1731718302867,3.24422,3082.4,3081.7,0.7627]
[1731718303083,3.24483,3081.9,3081.7,0.7627]
[1731718303365,0.298,3082.5,3081.7,0.7627]
[1731718303526,3.24459,3082.1,3081.7,0.7627]
[1731718304139,0.298,3082.5,3081.7,0.7627]
[1731718304140,3.54217,3082.5,3081.7,0.7627]
[1731718304421,3.24424,3082.4,3081.8,3.645586]
[1731718304822,3.24433,3082.3,3081.8,3.645586]
[1731718305850,3.24417,3082.5,3081.8,3.645586]
[1731718306147,0.298,3082.7,3082.1,0.7882]
[1731718306148,3.24401,3082.6,3082.1,0.7882]
[1731718306348,3.24401,3082.6,3082.2,0.403276]
[1731718306670,3.24401,3082.6,3082.1,0.7882]
[1731718306836,3.24419,3082.5,3082.1,0.7882]
[1731718307458,6.4884,3082.5,3082.1,0.7882]
[1731718307664,3.24422,3082.4,3082.1,0.7882]
[1731718307824,3.24419,3082.5,3082.1,0.7882]
[1731718308366,6.48841,3082.5,3082.1,0.7882]
[1731718308593,3.24419,3082.5,3082.1,1.44776943]
[1731718309456,3.24424,3082.4,3082.1,1.44776943]
[1731718311595,3.24424,3082.4,3082.1,0.7882]
[1731718311780,3.24436,3082.3,3081.6,0.833]
[1731718311980,3.24454,3082.1,3081.7,0.55]
[1731718312334,3.24436,3082.3,3081.7,0.55]
[1731718312335,6.48877,3082.3,3081.7,0.55]
[1731718312509,6.48877,3082.3,3081.6,4.078]
[1731718312510,0.298,3082.4,3081.6,0.833]
[1731718312853,3.24462,3082.1,3081.6,1.48124512]
[1731718313159,3.24438,3082.3,3081.6,1.95388163]
[1731718313399,3.24455,3082.1,3081.6,1.95388163]
[1731718314254,3.24455,3082.1,3081.6,5.19894163]
[1731718314751,3.24438,3082.3,3081.7,3.24491]
[1731718314954,3.24438,3082.3,3081.7,6.4898]
[1731718315154,3.24438,3082.3,3081.8,4.89706499]
[1731718315391,3.24438,3082.3,3081.8,1.65223499]
[1731718316285,3.24449,3082.2,3081.9,0.833]
[1731718316869,3.24454,3082.1,3081.9,0.833]
[1731718317723,3.24434,3082.3,3081.9,0.833]
[1731718318011,3.24444,3082.2,3082.0,0.64996934]
[1731718318571,0.298,3082.7,3081.9,0.833]
[1731718318913,6.48886,3082.3,3081.9,0.833]
[1731718319280,3.24417,3082.5,3081.9,0.833]
[1731718319482,3.24392,3082.7,3082.1,3.24448]
[1731718319678,3.24392,3082.7,3082.2,0.833]
[1731718319890,3.24392,3082.7,3082.2,4.07743]
[1731718320312,3.24418,3082.5,3082.2,0.833]
[1731718320470,6.48873,3082.3,3081.8,0.833]
[1731718320675,3.24433,3082.3,3081.8,0.833]
[1731718321099,3.24433,3082.3,3081.8,4.07784]
[1731718321411,3.24433,3082.3,3081.8,4.87387009]
[1731718321615,3.24433,3082.3,3081.8,0.833]
[1731718321929,3.24433,3082.3,3081.3,3.54378713]
[1731718321930,3.24496,3081.7,3081.2,3.24546]
[1731718322115,3.24485,3081.8,3081.2,3.24546]
[1731718322420,3.24506,3081.6,3081.3,0.407846]
[1731718322600,3.24506,3081.6,3081.1,0.833]
[1731718322802,3.24506,3081.6,3081.3,0.6475107]
[1731718323270,0.0487566,3082.2,3081.4,4.07827]
[1731718323271,3.24471,3082.0,3081.4,4.07827]
[1731718323477,3.24475,3081.9,3081.4,4.07827]
[1731718324204,3.24475,3081.9,3081.4,0.833]
[1731718324382,3.24486,3081.8,3081.4,0.833]
[1731718327036,0.3467566,3082.2,3081.4,0.833]
[1731718327037,0.0487566,3082.2,3082.0,3.24464]
[1731718327185,0.0487566,3082.2,3082.1,4.01864]
[1731718327396,3.24382,3082.8,3082.2,3.24442]
[1731718327698,3.24382,3082.8,3082.1,0.7741]
[1731718327699,0.298,3083.0,3082.1,0.7741]
[1731718327891,0.354158,3082.9,3082.1,0.7741]
[1731718328227,0.354158,3082.9,3081.7,0.7741]
[1731718328228,3.24475,3082.0,3081.7,0.7741]
[1731718328522,3.24429,3082.4,3082.2,0.7741]
[1731718329783,3.24429,3082.4,3081.9,3.88976413]
[1731718329988,3.2445,3082.2,3081.9,1.47254413]
[1731718331909,3.2445,3082.2,3081.9,0.64504413]
[1731718332109,3.24454,3082.1,3081.9,0.64504413]
[1731718332422,3.24455,3082.1,3081.9,0.64504413]
[1731718333445,0.298,3082.3,3081.6,0.7506]
[1731718333741,3.24508,3081.6,3081.3,0.7506]
[1731718334606,3.24491,3081.8,3081.3,0.7506]
[1731718334807,3.2447,3082.0,3081.3,3.99598]
[1731718335007,3.2447,3082.0,3081.6,0.7506]
[1731718335653,3.24448,3082.2,3081.6,4.46044675]
[1731718336014,3.24481,3081.9,3081.6,1.21538675]
[1731718336341,3.24481,3081.9,3081.6,0.7506]
[1731718336549,3.24457,3082.1,3081.6,0.7506]
[1731718336703,3.24409,3082.6,3081.6,0.7506]
[1731718336903,3.24412,3082.5,3082.0,0.7506]
[1731718337108,3.24403,3082.6,3082.1,0.399527]
[1731718337411,3.24385,3082.8,3082.2,0.7506]
[1731718337756,3.24391,3082.7,3082.2,0.7506]
[1731718338114,0.298,3083.2,3082.6,0.7506]
[1731718338468,0.01,3083.9,3083.0,0.7506]
[1731718338469,3.24309,3083.5,3083.0,0.7506]
[1731718338750,3.24306,3083.5,3083.0,0.7506]
[1731718339247,3.24334,3083.3,3083.0,0.7506]
[1731718339546,3.24334,3083.3,3082.6,0.64264867]
[1731718339547,3.24348,3083.1,3082.6,0.64264867]
[1731718339706,3.24376,3082.9,3082.5,0.7506]
[1731718340459,3.24348,3083.1,3082.5,0.7506]
[1731718340606,3.24348,3083.1,3082.8,0.64026712]
[1731718341520,6.48706,3083.1,3082.8,0.64026712]
[1731718341735,3.24348,3083.1,3082.8,0.64026712]
[1731718342741,3.24361,3083.0,3082.8,0.64026712]
[1731718343625,3.24369,3082.9,3082.8,0.64026712]
[1731718344741,3.24357,3083.1,3082.8,0.64026712]
[1731718345058,3.24359,3083.0,3082.8,0.64026712]
[1731718345347,3.24369,3082.9,3082.8,0.64026712]
[1731718345938,3.24416,3082.5,3082.2,0.7937]
[1731718346164,3.24428,3082.4,3081.8,4.541863]
[1731718346367,3.24428,3082.4,3082.0,0.7937]
[1731718347082,3.24401,3082.6,3082.3,0.64869595]
[1731718347262,3.24412,3082.5,3082.3,0.64869595]
[1731718348783,3.24412,3082.5,3082.0,4.03833]
[1731718349481,3.24403,3082.6,3082.0,4.03833]
[1731718349664,3.24371,3082.9,3082.2,3.88250092]
[1731718349972,3.24376,3082.9,3082.2,3.88250092]
[1731718350836,3.24376,3082.9,3082.2,3.24437]
[1731718351062,3.24376,3082.9,3082.3,3.2443]
[1731718351261,3.24376,3082.9,3082.4,4.0379]
[1731718353746,0.298,3083.3,3082.7,3.2439]
[1731718353747,3.24336,3083.3,3082.7,3.2439]
[1731718353946,3.54111,3083.5,3082.8,0.7937]
[1731718354152,3.24318,3083.4,3082.8,4.03744]
[1731718354581,0.298,3083.7,3082.9,0.7937]
[1731718354582,3.24297,3083.6,3082.9,0.7937]
[1731718354882,0.298,3083.7,3083.1,3.24341]
[1731718354883,3.24289,3083.7,3083.1,3.24341]
[1731718355041,3.24289,3083.7,3083.2,0.7937]
[1731718357664,3.24296,3083.6,3083.2,0.7937]
[1731718357866,3.24307,3083.5,3083.2,0.7937]
[1731718358041,6.48622,3083.5,3083.2,0.7937]
[1731718358240,3.24307,3083.5,3083.2,0.7937]
[1731718358851,3.2429,3083.7,3083.2,0.7937]
[1731718359252,3.24298,3083.6,3083.2,0.7937]
[1731718360360,3.2431,3083.5,3083.2,0.7937]
[1731718360769,3.24298,3083.6,3083.2,0.7937]
[1731718361886,3.2429,3083.7,3083.2,0.7937]
[1731718362411,6.48585,3083.7,3083.2,0.7937]
[1731718362559,3.24292,3083.7,3083.2,0.7937]
[1731718362890,6.48587,3083.7,3083.2,0.7937]
[1731718363053,6.48587,3083.7,3083.2,1.197416]
[1731718363250,3.24292,3083.7,3083.2,1.197416]
[1731718363449,3.24315,3083.5,3083.2,0.7937]
[1731718363893,3.24324,3083.4,3083.2,0.7937]
[1731718366356,3.24357,3083.1,3082.6,0.3241]
[1731718366556,3.2438,3082.8,3082.7,0.818]
[1731718366875,3.24381,3082.8,3082.5,0.65446341]
[1731718367429,3.24397,3082.7,3082.5,0.65446341]
[1731718367759,3.24401,3082.6,3082.3,0.818]
[1731718367968,3.24422,3082.4,3082.1,0.818]
[1731718368305,3.24422,3082.4,3082.1,1.46831426]
[1731718368808,3.24422,3082.4,3081.7,3.24495]
[1731718368809,3.24453,3082.2,3081.8,0.3241]
[1731718369014,3.24471,3082.0,3081.7,0.818]
[1731718369299,3.54245,3082.2,3081.7,0.818]
[1731718370184,3.24454,3082.1,3081.7,0.818]
[1731718370516,3.24406,3082.6,3081.8,3.24483]
[1731718370664,3.24423,3082.4,3081.9,0.730771]
[1731718371583,3.24406,3082.6,3081.9,0.730771]
[1731718371895,3.24391,3082.7,3082.1,0.818]
[1731718372109,3.24391,3082.7,3082.2,0.406258]
[1731718372267,3.24391,3082.7,3082.2,3.650688]
[1731718372871,3.24391,3082.7,3082.2,0.406258]
[1731718373308,3.24427,3082.4,3082.1,0.818]
[1731718373519,3.24413,3082.5,3082.1,0.818]
[1731718373971,3.24462,3082.1,3081.7,0.818]
[1731718375502,3.24443,3082.2,3081.7,4.06295]
[1731718375706,3.24443,3082.2,3081.7,0.818]
[1731718376776,3.24434,3082.3,3081.8,3.24484]
[1731718376978,3.24444,3082.2,3081.8,0.730781]
[1731718377167,3.24422,3082.4,3081.8,3.975631]
[1731718377374,3.24404,3082.6,3081.9,4.06268]
[1731718377573,3.24404,3082.6,3082.0,0.8038311]
[1731718377768,3.24391,3082.7,3082.0,0.8038311]
[1731718377999,3.2438,3082.8,3082.1,0.818]
[1731718378207,6.48733,3083.0,3082.4,0.818]
[1731718378507,3.24365,3083.0,3082.4,0.818]
[1731718378723,3.2438,3082.8,3082.4,0.818]
[1731718379064,3.24371,3082.9,3082.4,0.818]
[1731718379303,3.24371,3082.9,3082.4,1.224226]
[1731718379809,3.24345,3083.2,3082.7,0.818]
[1731718380408,3.24349,3083.1,3082.7,0.818]
[1731718380578,3.24336,3083.3,3082.7,0.818]
[1731718380771,3.24346,3083.2,3082.7,0.818]
[1731718381173,3.24341,3083.2,3082.7,0.818]
[1731718381913,3.2433,3083.3,3082.7,4.06188]
[1731718383311,3.24301,3083.6,3082.8,3.24379]
[1731718383601,3.24315,3083.5,3082.9,4.467869]
[1731718384039,3.24301,3083.6,3082.9,1.224179]
[1731718384195,3.24323,3083.4,3082.9,1.224179]
[1731718385322,3.24327,3083.3,3083.0,0.7711699]
[1731718385534,3.24323,3083.4,3083.0,0.7711699]
[1731718385841,3.243,3083.6,3083.0,0.7711699]
[1731718386021,3.2428,3083.8,3083.0,0.7711699]
[1731718386022,3.24279,3083.8,3083.0,4.0147199]
[1731718386196,3.24304,3083.6,3083.1,0.48327799]
[1731718386836,3.24264,3083.9,3083.1,0.48327799]
[1731718387008,3.24264,3083.9,3082.9,0.818]
[1731718387330,3.24314,3083.5,3082.9,0.818]
[1731718387585,3.24294,3083.7,3083.1,0.7541]
[1731718387744,3.24294,3083.7,3083.1,3.99757]
[1731718388030,3.24294,3083.7,3083.2,0.724115]
[1731718388234,3.24294,3083.7,3083.1,3.99757]
[1731718388608,3.24296,3083.6,3083.1,3.99757]
[1731718388818,3.24296,3083.6,3083.1,0.7541]
[1731718390940,3.24308,3083.5,3083.1,0.7541]
[1731718391753,3.24318,3083.4,3083.1,0.7541]
[1731718391937,6.48601,3083.6,3083.1,1.153879]
[1731718392138,3.24296,3083.6,3083.1,1.153879]
[1731718392450,3.24311,3083.5,3083.1,1.153879]
[1731718393850,3.24318,3083.4,3083.1,1.153879]
[1731718394147,3.24318,3083.4,3083.1,0.7541]
[1731718394447,3.24291,3083.7,3083.1,0.7541]
[1731718394448,3.24302,3083.6,3083.1,0.7541]
[1731718395433,3.2431,3083.5,3083.1,0.7541]
[1731718395645,0.298,3083.8,3083.1,0.7541]
[1731718395840,0.97633,3083.8,3083.1,0.7541]
[1731718396151,3.24319,3083.4,3083.1,0.7541]
[1731718397112,3.24316,3083.5,3083.1,0.7541]
[1731718397338,3.24323,3083.4,3083.1,0.7541]
[1731718397925,3.24316,3083.5,3083.1,0.7541]
[1731718398455,6.48631,3083.5,3083.1,0.7541]
[1731718398752,3.24315,3083.5,3083.1,0.7541]
[1731718400722,3.24315,3083.5,3083.1,1.153877]
[1731718404964,0.298,3083.8,3082.7,0.8228]
[1731718405259,0.298,3083.3,3082.7,0.8228]
[1731718405460,3.24379,3082.9,3082.7,0.8228]
[1731718406061,0.298,3083.3,3082.7,0.8228]
[1731718406278,3.2436,3083.0,3082.7,0.8228]
[1731718407769,3.24419,3082.5,3082.2,0.8228]
[1731718407923,3.24423,3082.4,3082.2,0.8228]
[1731718408124,3.54196,3082.7,3082.2,0.8228]
[1731718408321,3.24414,3082.5,3082.2,0.8228]
[1731718409472,3.54196,3082.7,3082.2,0.8228]
[1731718409796,3.24456,3082.1,3081.9,0.7648]
[1731718409944,3.24436,3082.3,3081.9,0.7648]
[1731718410339,3.24436,3082.3,3081.9,1.490249]
[1731718412154,3.28674842,3082.2,3081.9,1.490249]
[1731718412660,0.04230842,3082.2,3081.9,1.490249]
[1731718413675,0.04230842,3082.2,3082.1,3.24454]
[1731718413884,0.04230842,3082.2,3082.1,0.7969]
[1731718414085,0.04230842,3082.2,3082.1,4.5181429]
[1731718414582,0.04230842,3082.2,3082.1,4.58302742]
[1731718414878,3.2429,3083.7,3083.1,0.7969]
[1731718415441,3.2429,3083.7,3083.1,4.04031]
[1731718416039,0.3403,3083.9,3083.1,0.7969]
[1731718416242,3.24304,3083.6,3083.1,0.7969]
[1731718416441,3.24308,3083.5,3083.1,0.7969]
[1731718416688,3.24304,3083.6,3083.1,1.200952]
[1731718416985,3.24313,3083.5,3083.1,1.200952]
[1731718418972,3.24328,3083.3,3083.1,0.7469]
[1731718419951,3.24361,3083.0,3082.3,0.3241]
[1731718420378,0.3903,3083.3,3082.4,0.63879307]
[1731718420379,3.24386,3082.8,3082.4,0.63879307]
[1731718420704,3.24386,3082.8,3082.3,0.3241]
[1731718420705,3.24381,3082.8,3082.3,0.3241]
[1731718420988,3.2435,3083.1,3082.3,0.38898313]
[1731718421189,3.24323,3083.4,3082.7,3.24383]
[1731718421399,3.24367,3083.0,3082.4,3.63746703]
[1731718421601,3.24367,3083.0,3082.4,3.24419]
[1731718421771,3.24367,3083.0,3082.5,3.2441]
[1731718421960,3.24333,3083.3,3082.8,0.7969]
[1731718422473,3.24339,3083.2,3082.8,0.7969]
[1731718424915,0.3903,3083.7,3082.8,1.200975]
[1731718424916,3.24327,3083.3,3082.8,1.200975]
[1731718425784,3.24341,3083.2,3082.8,1.200975]
[1731718426359,3.24327,3083.3,3082.8,1.200975]
[1731718426360,3.24354,3083.1,3082.8,0.7969]
[1731718426555,3.24359,3083.0,3082.8,0.7969]
[1731718426964,3.24354,3083.1,3082.8,0.7969]
[1731718427697,3.24332,3083.3,3082.8,0.7969]
[1731718428000,3.24317,3083.4,3082.8,4.04062]
[1731718428165,3.24317,3083.4,3082.8,0.7969]
[1731718428363,3.24331,3083.3,3082.8,0.7969]
[1731718428560,6.48627,3083.5,3082.8,4.04064]
[1731718428762,3.24292,3083.7,3083.0,0.7984]
[1731718428961,3.24292,3083.7,3083.2,3.24337]
[1731718430463,6.48587,3083.7,3083.0,4.0419]
[1731718430664,3.24292,3083.7,3083.1,3.24347]
[1731718430967,6.48586,3083.7,3083.1,3.24347]
[1731718431180,6.48586,3083.7,3083.1,3.9785084]
[1731718431677,3.24296,3083.6,3083.1,3.9785084]
[1731718432497,3.24292,3083.7,3083.2,0.8018]
[1731718432905,3.24327,3083.3,3082.9,0.8018]
[1731718433071,3.24315,3083.5,3082.9,0.8018]
[1731718433276,3.24309,3083.5,3082.9,4.04549]
[1731718434473,3.24309,3083.5,3082.9,0.8018]
[1731718434806,3.24329,3083.3,3082.9,0.8018]
[1731718434991,6.810559,3083.5,3082.9,0.8018]
[1731718435174,3.567399,3083.5,3082.9,0.8018]
[1731718435365,3.24297,3083.6,3083.1,3.24347]
[1731718436287,3.2429,3083.7,3083.1,3.24347]
[1731718436493,3.24297,3083.6,3083.1,3.24347]
[1731718437075,0.3903,3084.0,3083.1,3.24347]
[1731718437076,3.24271,3083.9,3083.4,0.8018]
[1731718437282,3.24238,3084.2,3083.5,3.24306]
[1731718437478,3.24238,3084.2,3083.6,0.8018]
[1731718437707,3.24249,3084.1,3083.6,0.8018]
[1731718438093,3.24238,3084.2,3083.6,0.8018]
[1731718439006,3.24249,3084.1,3083.6,0.8018]
[1731718439212,3.24238,3084.2,3083.6,0.8018]
[1731718439397,3.24256,3084.0,3083.6,0.8018]
[1731718440157,3.24285,3083.7,3083.6,0.8018]
[1731718440409,3.24285,3083.7,3083.3,0.8018]
[1731718441823,3.24297,3083.6,3083.3,0.8018]
[1731718443118,3.24276,3083.8,3083.3,0.8018]
[1731718443286,3.24286,3083.7,3083.3,0.8018]
[1731718444190,6.4856,3083.8,3083.3,0.8018]
[1731718444388,3.24286,3083.7,3083.3,0.8018]
[1731718444608,3.63304,3083.9,3083.3,0.8018]
[1731718444910,3.24293,3083.7,3083.3,0.8018]
[1731718445078,0.363304,3083.8,3083.3,0.8018]
[1731718445079,3.24277,3083.8,3083.3,0.8018]
[1731718445472,3.24288,3083.7,3083.3,0.8018]
[1731718445702,6.48584,3083.7,3083.3,0.8018]
[1731718445898,3.24288,3083.7,3083.3,0.8018]
[1731718447836,3.24364,3083.0,3082.8,0.773]
[1731718448045,3.24364,3083.0,3082.5,4.01711]
[1731718448643,3.24371,3082.9,3082.5,0.773]
[1731718449721,3.24381,3082.8,3082.5,0.773]
[1731718449922,3.24371,3082.9,3082.5,0.773]
[1731718450108,3.24353,3083.1,3082.5,0.773]
[1731718450109,3.2436,3083.0,3082.5,0.773]
[1731718450705,3.2437,3082.9,3082.5,0.773]
[1731718451244,3.24386,3082.8,3082.5,0.773]
[1731718451398,3.24398,3082.7,3082.2,0.773]
[1731718451598,3.24409,3082.6,3082.2,0.773]
[1731718451834,3.24385,3082.8,3082.2,0.773]
[1731718452241,3.24393,3082.7,3082.2,0.773]
[1731718455350,3.24385,3082.8,3082.2,0.773]
[1731718455497,0.3903,3083.2,3082.4,6.78793713]
[1731718455498,3.24361,3083.0,3082.4,6.78793713]
[1731718455701,3.24361,3083.0,3082.4,3.54378713]
[1731718455902,3.24381,3082.8,3082.4,3.54378713]
[1731718457120,3.24392,3082.7,3082.4,3.54378713]
[1731718457839,3.24412,3082.5,3082.2,0.773]
[1731718458039,3.24412,3082.5,3082.1,4.20202695]
[1731718458040,3.24412,3082.5,3082.1,0.65823982]
[1731718458217,7.202662,3082.7,3082.1,3.90276982]
[1731718458540,3.958652,3082.7,3082.1,3.90276982]
[1731718458744,3.63426,3082.7,3082.1,3.90276982]
[1731718459165,3.24405,3082.6,3082.1,3.90276982]
[1731718459466,0.3903,3082.7,3082.3,3.54378713]
[1731718459635,3.24366,3083.0,3082.4,4.01722]
[1731718461542,3.24366,3083.0,3082.4,0.773]
[1731718461771,3.24364,3083.0,3082.4,0.773]
[1731718461971,3.24392,3082.7,3082.4,0.773]
[1731718463441,3.24402,3082.6,3082.3,3.54378713]
[1731718463655,3.24402,3082.6,3082.1,7.67571982]
[1731718463854,3.24402,3082.6,3082.1,8.79767052]
[1731718466245,3.24402,3082.6,3082.1,4.43123982]
[1731718466467,0.2403,3082.5,3082.1,0.65823982]
[1731718467188,3.48448,3082.5,3082.1,0.65823982]
[1731718469650,0.2403,3082.5,3081.6,0.7744]